Cogmind - Beta 17 @@@ ROGUE MODE // 2026.07.01 @ 19:18:26 Player: Ben Result: Destroyed by G-34 Mercenary with Small Laser Performance ------------- Evolutions (0) 0 Regions Visited (1) 200 Robots Destroyed (13) 65 Value Destroyed (347) 347 Prototype IDs (4) 80 Alien Tech Used (0) 0 Bonus (0) 0 TOTAL SCORE: 692 Bonus ------- None Cogmind --------- Core Integrity 0/250 Matter 218/450 Energy 250/250 System Corruption 0% Temperature Cool (12) Movement Walking (120) Location -10/Materials Parts ------- > --- POWER (1) -------- Ion Engine > --- PROPULSION (2) --- Aluminum Leg Aluminum Leg > --- UTILITY (2) ------ Large Matter Pod > --- WEAPON (2) ------- Light Assault Rifle Light Cannon > --- INVENTORY (5) ---- Light Ion Engine Small Laser Light Assault Rifle Datajack Heavy Hammer Peak State ------------ > --- POWER ------------ Ion Engine > --- PROPULSION ------- Wheel Wheel > --- UTILITY ---------- Improved Terrain Scanner Seismic Detector > --- WEAPON ----------- Heavy Hammer Heavy Hammer > --- INVENTORY -------- Light Ion Engine Wheel Large Matter Pod [Rating: 11] Favorites ----------- Power Ion Engine Engine Ion Engine Propulsion Wheel Leg Aluminum Leg Wheel Wheel Utility Seismic Detector Device Seismic Detector Storage Large Matter Pod Weapon EM Pulse Gun Energy Gun EM Pulse Gun Ballistic Gun Light Assault Rifle Ballistic Cannon Light Cannon Special Weapon Mining Laser Impact Weapon Heavy Hammer Build | -11 -10 ------- Run | Yrd Mat Slots Evolved . | . . Power . | . . Propulsion . | . . Utility . | . . Weapon . | . . Parts Attached 21 | 8 13 Power 3 | 2 1 Engine 3 | 2 1 Core . | . . Reactor . | . . Propulsion 5 | 2 3 Treads . | . . Leg 3 | . 3 Wheel 2 | 2 . Hover . | . . Flight . | . . Utility 4 | 2 2 Device 3 | 2 1 Storage 1 | . 1 Processor . | . . Hackware . | . . Protection . | . . Artifact . | . . Weapon 9 | 2 7 Energy Gun 2 | 2 . Energy Cannon . | . . Ballistic Gun 2 | . 2 Ballistic Cannon 2 | . 2 Launcher . | . . Special Weapon 1 | . 1 Impact Weapon 2 | . 2 Slashing Weapon . | . . Piercing Weapon . | . . Special Melee Weapon . | . . Unidentified Prototypes . | . . Parts Lost 7 | . 7 Power 1 | . 1 Propulsion 3 | . 3 Utility 2 | . 2 Weapon 1 | . 1 Highest Loss Streak 6 | . 6 To Critical Strikes . | . . Average Backups 4 | 2 4 Power . | . 1 Propulsion . | . . Utility . | . . Weapon 1 | . 1 Tool/Special . | . . Unused Backups 9 | . 9 Power . | . . Propulsion 1 | . 1 Utility 4 | . 4 Weapon 3 | . 3 Tool/Special 1 | . 1 Average Slot Usage (%) 89 | . 89 Engine 10 | . 10 Leg 6 | . 6 Wheel 19 | . 19 Device 19 | . 19 Storage 3 | . 3 Energy Gun 7 | . 7 Ballistic Gun 5 | . 5 Ballistic Cannon 3 | . 3 Special Weapon 5 | . 5 Impact Weapon 6 | . 6 Peak Build Rating 11 | 9 11 Average Rating 6 | 5 7 On Entrance 4 | . 9 Avg Prop Armor Cover (%) . | . . Naked Turns . | . . Heaviest Build 13 | 11 13 Greatest Support 20 | 20 20 Greatest Overweight (x) 1 | . 1 Average Overweight (x) . | . . Largest Inventory Capacity 5 | 5 5 Average Capacity 5 | 5 5 Most Carried 5 | 5 5 Average Carried 4 | 2 4 Final Capacity 5 | 5 5 Final Carried 5 | 4 5 Class Distribution -------------------- 100% | Mutant Dominant Class ---------------- Mutant | -10/Materials Resources | -11 -10 ----------- Run | Yrd Mat Matter Collected 451 | 280 171 Remotely . | . . Salvage Created 370 | 148 222 Parts 24 | 10 14 Haulers Intercepted . | . . Recyclers Shooed . | . . Parts Field Recycled . | . . Retrieved Matter . | . . Parts Self-Destructed . | . . Prevented . | . . Parts Restored . | . . Kills | -11 -10 ------- Run | Yrd Mat Combat Hostiles Destroyed 9 | 1 8 Guns 6 | 1 5 Cannons 3 | . 3 Classes Destroyed 2 | 2 . Tunneler 4 | 4 . Grunt 9 | 1 8 Best Kill Streak 3 | 3 3 Combat Bots Only 3 | 1 3 Max Kills in Single Turn 1 | 1 1 Gunslinging . | . . Exploded . | . . Melee . | . . Uniques/NPCs Destroyed . | . . Combat | -11 -10 -------- Run | Yrd Mat Hostile Shots Fired 104 | 5 99 Missed 20 | 2 18 Hits 84 | 3 81 Projectile 84 | 3 81 Damage Taken 960 | 34 926 Core 261 | 23 238 Absorbed by Shields . | . . Core Remaining (%) 90 | 90 . Volleys Fired 51 | 9 42 Largest 2 | 2 2 Hottest 150 | 90 150 Shots Fired 90 | 18 72 Gun 65 | 18 47 Cannon 20 | . 20 Launcher . | . . Special 5 | . 5 Kinetic 60 | . 60 Thermal 18 | 9 9 Explosive . | . . Electromagnetic 12 | 9 3 Robot Hit Streak 11 | 7 11 Robot Miss Streak 3 | 3 3 Penetration Max . | . . Secondary Targets 1 | . 1 Max Gunslinging Chain 1 | . 1 Shots Hit Robots 63 | 10 53 Core Hits 27 | 6 21 Critical Kills . | . . Critical Parts Destroyed . | . . Critical Strikes . | . . Melee Attacks . | . . Impact . | . . Slashing . | . . Piercing . | . . Sneak Attacks . | . . Combat Hostiles . | . . Follow-up Attacks . | . . Damage Inflicted 830 | 155 675 Guns 459 | 155 304 Cannons 274 | . 274 Explosions . | . . Melee . | . . Ramming 1 | . 1 Kinetic 511 | . 511 Thermal 171 | 50 121 Explosive . | . . Electromagnetic 147 | 105 42 Impact . | . . Slashing . | . . Piercing . | . . Highest Corruption . | . . Average Corruption . | . . Corruption Purged . | . . Corruption Blocked . | . . Overload Shots . | . . Overflow Damage . | . . Projectiles . | . . Explosions . | . . Melee . | . . Knockbacks 9 | . 9 Impact . | . . Kinetic 8 | . 8 Secondary 1 | . 1 Self-Inflicted Damage . | . . Shots . | . . Rammed . | . . Targets Rammed 1 | . 1 Kicked 1 | . 1 Crushed . | . . Highest Temperature 154 | 90 154 Average Temperature 48 | 32 54 Received Heat Transfer 531 | 18 513 Siege Activations . | . . Martial Activations . | . . Shielding Activations . | . . Robots Disrupted . | . . Combat Hostiles . | . . Robots Corrupted . | . . Combat Hostiles . | . . Parts Fried . | . . Impact Corruptions . | . . Robots Melted . | . . Combat Hostiles . | . . Parts Melted . | . . Heat Transferred 422 | 148 274 Parts Sabotaged . | . . Parts Stolen . | . . Parts Stripped . | . . Power Chain Reactions . | . . Alert | -11 -10 ------- Run | Yrd Mat Maximum Alert Level . | . . Low Security (%) 100 | 100 100 Level 1 . | . . Level 2 . | . . Level 3 . | . . Level 4 . | . . Level 5 . | . . High Security . | . . Max Security . | . . Peak Influence 70 | 20 70 Initial . | . . Average 12 | 3 14 Influence Increases 252 | 40 212 Destroy 0b10 Robot/C 180 | 20 160 Destroy 0b10 Robot/NC 20 | 20 . Destroy Leader 30 | . 30 Successful Hack 21 | . 21 Destroy Structure 1 | . 1 Influence Decreases 195 | 40 155 Time Decay 185 | 40 145 Lost Part 10 | . 10 Squads Dispatched 3 | . 3 Investigation 2 | . 2 Extermination . | . . Reinforcement 1 | . 1 Assault . | . . Garrison . | . . Intercept . | . . Searches Triggered . | . . Construction Impeded . | . . Haulers Reinforced . | . . Active Scanning Responses . | . . Cargo Convoy Interrupts . | . . Stealth | -11 -10 --------- Run | Yrd Mat Distress Signals . | . . Communications Jammed . | . . Distress Signals . | . . Times Spotted 13 | 1 12 Peak Tracking Total 3 | 1 3 Tactical Retreats . | . . Traps | -11 -10 ------- Run | Yrd Mat Traps Triggered 3 | . 3 Indirectly . | . . Trap Hack Attempts . | . . Triggered . | . . Disarmed . | . . Reprogrammed . | . . Reused . | . . Traps Extracted . | . . Installed . | . . Triggered . | . . Machines | -11 -10 ---------- Run | Yrd Mat Machines Disabled . | . . Max in Single Turn . | . . Machines Repaired . | . . Machines Dismantled . | . . Machines Sabotaged . | . . Overloaded Fab Kills . | . . Hacking | -11 -10 --------- Run | Yrd Mat Machines Accessed 6 | . 6 Terminals 5 | . 5 Fabricators . | . . Repair Stations . | . . Recycling Units 1 | . 1 Scanalyzers . | . . Garrison Access . | . . Total Hacks 16 | . 16 Successful 10 | . 10 Failed 6 | . 6 Catastrophic . | . . Database Lockouts . | . . Manual . | . . Terminals 14 | . 14 Fabricators . | . . Repair Stations . | . . Recycling Units 2 | . 2 Scanalyzers . | . . Garrison Access . | . . Terminal Hacks 9 | . 9 Record 3 | . 3 Prototype ID Bank 2 | . 2 Emergency Access Points 1 | . 1 Locate Traps 1 | . 1 Registered Components 1 | . 1 Zone Layout 1 | . 1 Fabricator Hacks . | . . Repair Station Hacks . | . . Recycling Unit Hacks 1 | . 1 Retrieve Components 1 | . 1 Scanalyzer . | . . Garrison Access Hacks . | . . Unauthorized Hacks . | . . Terminals . | . . Fabricators . | . . Repair Stations . | . . Recycling Units . | . . Scanalyzers . | . . Garrison Access . | . . Data Cores Recovered . | . . Used . | . . Hacking Detections 5 | . 5 Full Trace Events . | . . Feedback Events . | . . Feedback Blocked . | . . Robot Schematics Acquired . | . . Robots Built . | . . Authchips . | . . Time . | . . Total Robot Build Rating . | . . Part Schematics Acquired . | . . Parts Built . | . . Authchips . | . . Time . | . . Total Part Build Rating . | . . Part Studies Acquired . | . . Parts Repaired . | . . Time . | . . Parts Recycled . | . . Recycled Matter . | . . Retrieved Matter . | . . Retrieved Components 3 | . 3 Parts Scanalyzed . | . . Part Schematics Acquired . | . . Parts Damaged . | . . Bothacking | -11 -10 ------------ Run | Yrd Mat Used RIF Installer . | . . Robots Hacked . | . . Non-combat . | . . Combat . | . . Robot Hacks Applied . | . . Relay Couplers Released . | . . Fabnet Peak Effective % . | . . Robots Rewired . | . . Allies Hacked . | . . Hacks Repelled . | . . Allies | -11 -10 -------- Run | Yrd Mat Total Allies . | . . Largest Group . | . . Highest-Rated Group . | . . Highest-Rated Ally . | . . Total Orders . | . . Ally Attacks . | . . Total Damage . | . . Kills . | . . Allies Corrupted . | . . Allies Melted . | . . Intel | -11 -10 ------- Run | Yrd Mat Active Infowar (turns) 667 | 85 582 Terrain 667 | 85 582 Seismic 587 | 9 578 Robot Analysis Total . | . . Derelict Logs Recovered . | . . Drone Launches . | . . Drone Recoveries . | . . Exploration | -11 -10 ------------- Run | Yrd Mat Turns Passed 1058 | 222 836 Spaces Moved 587 | 216 371 Core 19 | 17 2 Treads . | . . Legs 117 | . 117 Wheels 451 | 199 252 Hover . | . . Flight . | . . Fastest Speed 50 | 50 50 Average Speed 88 | 77 95 Slowest Speed 190 | 80 190 Overloaded Moves . | . . Propulsion Burnouts . | . . Robots Hopped . | . . Potential Cave-ins . | . . Cave-ins Triggered . | . . Exploration Rate (%) 33 | 6 61 Regions Visited 1 Branch Regions . Pre-discovered Areas . | . . Known Exits Taken . | . . Unknown Exits Taken 1 | 1 . Scrap Searched . | . . Spaces Dug . | . . Terrain Destroyed 1 | . 1 Melee . | . . Projectile 1 | . 1 AOE . | . . Terrain Rammed . | . . Walls Destroyed . | . . Machines Disabled . | . . Actions | -11 -10 --------- Run | Yrd Mat Total 1034 | 252 782 Wait 326 | 7 319 Move 586 | 215 371 Hop . | . . Pick Up 31 | 12 19 Fast Attach 3 | . 3 Attach 17 | 7 10 Detach . | . . Swap 5 | 1 4 Drop 14 | 1 13 Fire 51 | 9 42 Melee . | . . Ram . | . . Kick 1 | . 1 Crush . | . . Escape Stasis . | . . Rewire . | . . Trap . | . . Miscellaneous . | . . Route ------- -11/Scrapyard -10/Materials (discovered 2 exits: [*Mat] / [*Min]) History --------- Turn | Location | Event 2 | -11/Scrapyard | Met Revision 17 48 | -11/Scrapyard | Discovered new exit (range 8) 223 | -11/Scrapyard | Entered Materials 311 | -10/Materials | Build established: Mutant 411 | -10/Materials | Discovered new exit (range 15) 517 | -10/Materials | Discovered new exit (range 9) 798 | -10/Materials | Core integrity fell below 50% 836 | -10/Materials | Lost 6 parts (1p2n2u1w) 965 | -10/Materials | Core integrity fell below 20% 1059 | -10/Materials | Destroyed by G-34 Mercenary with Small Laser Last Messages --------------- (7,40) Map updated. G-47 Trooper knocked back. G-47 Trooper destroyed. Acquired 2 matter. Aluminum Leg destroyed. G-34 Mercenary knocked back. G-34 Mercenary destroyed. Acquired Ion Engine. Acquired 4 matter. Acquired 1 matter. Acquired 27 matter. Acquired 36 matter. Acquired 2 matter. Acquired 4 matter. G-34 Mercenary knocked back. [Achievement: Bumper Bots] G-34 Mercenary destroyed. Acquired Aluminum Leg. G-34 Mercenary knocked back. Map ----- +----------------------------------------------------+ | ????????????????????????????????? | | ????????????????????????????????? | | ????????????????????????????????? | | ????????????????????????????????? | | ????????????????????????????????? | | ????????????????????????????????? | | ????????????????????????????#??#? | | ????????????????????????????????? | | ????????????????????????????????? | | ????????????????????????????#???? | | ???????????????????????????????#? | | ?????????? ????????????????#??? | | ????????? ??????????????????? | | ????????? ???????????????#?## | | ########## #?????????????????# | | # # #?????????######### | | # + +?????????# ## | | # # #?????????# = ## | | # # #?????????# """ ## | | # # #?????????# """ ### | | # # #??%??????# """ #?? | | # # #?????????# #?? | | # # #?????????###+####?? | | # ! # #???????????# #????? | | ###+###g## #???????????# #????? | | ?# g /@# % ############# ###### | | ?#! %+%% | | ?# "T" #% ##+#####+###### | | ?######### # ? ????? | | ?????????# ### ## ????? | | ?????????# #?# ## #???? | | ?????????# #?# ## #???? | | ?????????# ###+############???? | | ?????????# # #?????????? | | ?????????# # #?????????? | | ?????????# # #?????????? | | ?????????+ # #?????????? | | ?????????# / #?????????? | | ?????????# # #?????????? | | ???????+?###/# #?????????? | | ??????????? # #?????????? | | ?????????? # #?????????? | | ?????????? ??##########?????????? | | ?????????""?????????????????????? | | ????????????????????????????????? | | ????????????????????????????????? | | ????????????????????????????????? | | ??????????????????????????? ????? | | ????????????????????????????????? | | ????????????????????????????????? | +----------------------------------------------------+ Best States ------------- Heat Dissipation 25 Energy Generation 10 Energy Capacity 250 Matter Stores 300 Matter Capacity 450 Sight Range 16 Terrain Scan Range 16 Terrain Scan Density 10 Evasion (%) 55 Item Schematics ----------------- None Robot Schematics ------------------ None Fabricated ------------ Nothing Repaired ---------- Nothing Studied --------- None Alien Tech Used ----------------- None Achievements -------------- Bumper Bots DATA ERROR: Steam Global Achievement% For Emergencies Only I Have A Map? Organ Harvest There's More Where That Came From Challenges ------------ None Game ------ Seed CoreReflexArray Manual? 0 Play Time 00:37:24 Cumulative 5.9 hours Start 2026.07.01 @ 18:39:19 End 2026.07.01 @ 19:18:26 Sessions 1 Manual Loads 0 Difficulty Rogue Special Mode None Game No. 3 Rogue 3 Adventurer 0 Explorer 0 Win Type - Total 0 Types 0/0/0/0/0/0/0/0/0/0 Lore% 6 Gallery% 8 Achievement% 6 Wizard Run 0 Options --------- Layout 1 ASCII 0 Keyboard 0 Movement Mouse Keybinds 0 Fullscreen 1 Font 24/Smallcaps Map View 50x35 Zoom Use 0% Tactical HUD 0 Map Filters NONE Filters NONE Steam 1 RUN: 22979025-7638-43f7-b2d3-2cf6a6274b4f